[Event "Austria Championship Blitz 2024"]
[Site "Innsbruck"]
[Date "2024.06.01"]
[Round "7.23"]
[White "Neubauer, Anton"]
[Black "Schranzhofer, Marco"]
[Result "0-1"]
[ECO "B13"]
[WhiteElo "1857"]
[BlackElo "1908"]
[Annotator "RC"]
[PlyCount "50"]
[EventDate "2024.06.01"]
[EventType "swiss"]
[EventCountry "AUT"]
[SourceTitle "playchess.com"]
[Source "ChessBase"]
[SourceQuality "1"]
[TimeControl "180+2"]

1. e4 {[%emt 0:00:01]} c6 {[%emt 0:00:01]} 2. d4 {[%emt 0:00:02]} d5 {[%emt 0:00:01]} 3. exd5 {[%emt 0:00:01]} cxd5 {[%emt 0:00:01]} 4. Nf3 {[%emt 0:00:01]} Nf6 {[%emt 0:00:01]} 5. Bd3 {[%emt 0:00:02]} Nc6 {[%emt 0:00:02]} 6. h3 {[%emt 0:00:03]} Qc7 {[%emt 0:00:12]} 7. O-O {[%emt 0:00:04]} e6 {[%emt 0:00:06]} 8. c3 {[%emt 0:00:01]} Bd6 {[%emt 0:00:03]} 9. Re1 {[%emt 0:00:03]} h6 {[%emt 0:00:07]} 10. Nbd2 {[%emt 0:00:01]} O-O {[%emt 0:00:10]} 11. Nf1 {[%emt 0:00:01]} e5 {[%emt 0:00:13]} 12. dxe5 {[%emt 0:00:04]} Nxe5 {[%emt 0:00:02]} 13. Nxe5 {[%emt 0:00:07]} Bxe5 {[%emt 0:00:02]} 14. Be3 {[%emt 0:00:14]} Bd7 {[%emt 0:00:07]} 15. Nd2 {[%emt 0:00:12]} Rfe8 {[%emt 0:00:15]} 16. Nf3 {[%emt 0:00:02]} Bf4 {[%emt 0:00:04]} 17. Qd2 {[%emt 0:00:28]} Bxe3 {[%emt 0:00:02]} 18. Rxe3 {[%emt 0:00:01]} Rxe3 {[%emt 0:00:02]} 19. Qxe3 {[%emt 0:00:03]} a6 {[%emt 0:00:11]} 20. Nd4 {[%emt 0:00:08]} Re8 {[%emt 0:00:01]} 21. Qf3 {[%emt 0:00:17]} Qe5 {[%emt 0:00:11]} 22. Kf1 {[%emt 0:00:16]} Ne4 {[%emt 0:00:06]} 23. Qd1 {[%emt 0:00:22]} Qh2 {[%emt 0:00:25]} 24. Ne2 {[%emt 0:00:25]} Nc5 {[%emt 0:00:11]} 25. Bc2 {[%emt 0:00:45]} Bb5 {[%emt 0:01:16]} 0-1

[Event "Austria Championship Blitz 2024"]
[Site "Innsbruck"]
[Date "2024.06.01"]
[Round "8.1"]
[White "Schwabeneder, Florian"]
[Black "Horvath, Dominik"]
[Result "1/2-1/2"]
[ECO "A05"]
[WhiteElo "2405"]
[BlackElo "2554"]
[Annotator "TA"]
[PlyCount "128"]
[EventDate "2024.06.01"]
[EventType "swiss"]
[EventCountry "AUT"]
[SourceTitle "playchess.com"]
[Source "ChessBase"]
[SourceQuality "1"]
[TimeControl "180+2"]

{[%evp 42,128,-94,-89,-104,-98,-98,-105,-111,-108,-96,-90,-51,-84,-43,-50,-37,-47,-45,-45,-45,-86,-58,-46,-8,-11,0,-37,-41,-44,-43,-598,-592,-559,-556,-1927,-2453,-2453,-2395,-1239,-443,-607,-608,-603,-606,-575,-529,-577,-564,-550,-350,-380,-350,-323,-188,-409,0,0,0,0,0,0,0,0,0,0,0,0,0,0,0,0,0,0,0,0,0,-8,-8,-72,0,0,0,0,0,0,0,0,0]} 1. Nf3 {[%emt 0:00:02]} d5 {[%emt 0:00:06]} 2. g3 {[%emt 0:00:01]} g6 {[%emt 0:00:01]} 3. Bg2 {[%emt 0:00:02]} Bg7 {[%emt 0:00:02]} 4. O-O {[%emt 0:00:02]} Nf6 {[%emt 0:00:06]} 5. b3 {[%emt 0:00:17]} c5 {[%emt 0:00:05]} 6. Bb2 {[%emt 0:00:03]} O-O {[%emt 0:00:03]} 7. c4 {[%emt 0:00:06]} d4 {[%emt 0:00:01]} 8. b4 {[%emt 0:00:02]} Nfd7 {[%emt 0:00:03]} 9. d3 {[%emt 0:00:20]} e5 {[%emt 0:00:02] A05: Réti Opening: 1 Nf3 Nf6.} 10. b5 {[%emt 0:00:13]} a5 {[%emt 0:00:10]} 11. Re1 $146 {[%emt 0:00:14]} ({Predecessor:} 11. Nbd2 Ra7 12. Qc2 b6 13. e3 Re8 14. Rae1 Nf6 15. a4 Rae7 16. e4 Nbd7 17. Nb3 {0-1 Harutjunyan,G (2446)-Padmini,R (2302) Nagpur op 2012 (5)}) 11... f5 {[%emt 0:00:04]} 12. Qc2 {[%emt 0:00:06]} Re8 {[%emt 0:00:10]} 13. Nfd2 {[%emt 0:00:32]} Ra7 {[%emt 0:00:08]} 14. e3 {[%emt 0:00:04]} b6 {[%emt 0:00:05]} 15. a4 {[%emt 0:00:09]} Bb7 {[%emt 0:00:02]} 16. e4 {[%emt 0:00:19]} Nf6 {[%emt 0:00:05]} 17. Bh3 {[%emt 0:00:43]} fxe4 {[%emt 0:00:35]} 18. Nxe4 {[%emt 0:00:02]} Nxe4 {[%emt 0:00:05]} 19. dxe4 {[%emt 0:00:01]} Nd7 {[%emt 0:00:01]} 20. Bc1 {[%emt 0:00:05]} Nf8 {[%emt 0:00:03]} 21. Qd3 {[%emt 0:00:11]} Bc8 {[%emt 0:00:01]} 22. Bxc8 {[%emt 0:00:03]} Qxc8 {[%emt 0:00:01]} 23. Nd2 {[%emt 0:00:02]} Rf7 {[%emt 0:00:01]} 24. Rf1 {[%emt 0:00:03]} Ne6 {[%emt 0:00:02]} (24... Qh3 {is interesting.} 25. Nf3 Ne6 26. Ne1 Nd8) 25. Nf3 {[%emt 0:00:04]} Ref8 {[%emt 0:00:04]} 26. Ne1 {[%emt 0:00:03]} h5 {[%emt 0:00:06]} (26... Nd8 {seems wilder.} 27. Kg2 Nb7 28. Ra2 Nd6) 27. f3 {[%emt 0:00:02]} Kh7 {[%emt 0:00:01]} 28. Ra2 {[%emt 0:00:01]} Bh6 {[%emt 0:00:02]} 29. Bxh6 Kxh6 {[%emt 0:00:01]} 30. Raf2 {[%emt 0:00:03]} Kg7 {[%emt 0:00:02]} 31. h4 {[%emt 0:00:03]} Qd8 {[%emt 0:00:02]} 32. Qd2 {[%emt 0:00:04]} Kh7 {[%emt 0:00:06]} 33. Nd3 {[%emt 0:00:01]} Qd6 {[%emt 0:00:06]} 34. f4 {[%emt 0:00:01]} exf4 {[%emt 0:00:02]} 35. gxf4 {[%emt 0:00:01]} Qe7 {[%emt 0:00:02]} 36. f5 $2 {[%emt 0:00:01][%mdl 8192]} (36. Rh2 $15) 36... gxf5 $19 {[%emt 0:00:04]} 37. exf5 {[%emt 0:00:02]} Rg8+ {[%emt 0:00:25]} ({Less strong is} 37... Ng7 38. f6 Rxf6 39. Rxf6 Rxf6 40. Rf4 $19) 38. Kh1 {[%emt 0:00:01]} Qxh4+ {[%emt 0:00:08]} 39. Rh2 {[%emt 0:00:01]} Qe4+ {[%emt 0:00:01]} 40. Rg2 {[%emt 0:00:01]} Rxf5 {[%emt 0:00:36]} (40... Rxg2 $142 41. Qxg2 Qxd3) 41. Rxf5 {[%emt 0:00:01]} Qxf5 {[%emt 0:00:01]} 42. Rxg8 {[%emt 0:00:06]} Kxg8 {[%emt 0:00:10]} 43. Qg2+ {[%emt 0:00:02]} Kf7 {[%emt 0:00:08]} 44. Nf2 {[%emt 0:00:05]} Qe5 {[%emt 0:00:12]} 45. Qb7+ {[%emt 0:00:03]} Qc7 {[%emt 0:00:01]} 46. Qf3+ {[%emt 0:00:02]} Qf4 {[%emt 0:00:03]} 47. Qxh5+ {[%emt 0:00:02]} Ke7 {[%emt 0:00:01]} (47... Kg7 $142 {[%cal Of4h6] And now ...Qh6! would win.} 48. Qe2 Qe3 49. Qg4+ Ng5) 48. Kg2 $2 {[%emt 0:00:03] [#]} (48. Qh7+ Kd6 49. Qh5) 48... d3 $2 {[%emt 0:00:09]} (48... Qg5+ $1 $19 {[%mdl 512]} 49. Qg4 (49. Qxg5+ Nxg5) 49... Qxg4+ 50. Nxg4 Nf4+ 51. Kg3 Nd3) 49. Qh7+ $11 {[%emt 0:00:01]} Kd6 {[%emt 0:00:02]} 50. Qxd3+ Kc7 51. Qg3 {[%emt 0:00:02]} Qxg3+ {[%emt 0:00:02]} 52. Kxg3 {[%emt 0:00:01]} Nd4 {[%emt 0:00:01]} 53. Nd3 {[%emt 0:00:02]} Ne2+ {[%emt 0:00:02]} 54. Kf2 {[%emt 0:00:02]} Nc3 {[%emt 0:00:01]} 55. Nb2 {[%emt 0:00:01]} Kd6 {[%emt 0:00:02]} 56. Ke3 {[%emt 0:00:00]} Ke5 {[%emt 0:00:01]} 57. Kd3 {[%emt 0:00:02]} Ne4 {[%emt 0:00:01]} 58. Ke3 {[%emt 0:00:01]} Nd6 {[%emt 0:00:00]} 59. Kd3 {[%emt 0:00:02]} Kf4 {[%emt 0:00:01]} 60. Nd1 {[%emt 0:00:02] [#]} Ne4 {[%emt 0:00:04]} ({Black should try} 60... Nf7 $1 $17) 61. Ne3 $11 {[%emt 0:00:04]} Nf6 {[%emt 0:00:03]} 62. Ng2+ {[%emt 0:00:03]} Ke5 {[%emt 0:00:02]} 63. Ne3 {[%emt 0:00:01]} Kf4 {[%emt 0:00:05]} 64. Ng2+ {[%emt 0:00:01]} Ke5 {[%emt 0:00:03]} 1/2-1/2

[Event "Austria Championship Blitz 2024"]
[Site "Innsbruck"]
[Date "2024.06.01"]
[Round "8.2"]
[White "Platzgummer, Fabian"]
[Black "Kruckenhauser, Arthur"]
[Result "1-0"]
[ECO "A37"]
[WhiteElo "2311"]
[BlackElo "2340"]
[Annotator "RC"]
[PlyCount "89"]
[EventDate "2024.06.01"]
[EventType "swiss"]
[EventCountry "AUT"]
[SourceTitle "playchess.com"]
[Source "ChessBase"]
[SourceQuality "1"]
[TimeControl "180+2"]

1. Nf3 {[%emt 0:00:01]} c5 {[%emt 0:00:00]} 2. c4 {[%emt 0:00:02]} Nc6 {[%emt 0:00:01]} 3. Nc3 {[%emt 0:00:03]} g6 {[%emt 0:00:13]} 4. g3 {[%emt 0:00:09]} Bg7 {[%emt 0:00:01]} 5. Bg2 {[%emt 0:00:00]} e5 {[%emt 0:00:01]} 6. O-O {[%emt 0:00:03]} Nge7 {[%emt 0:00:01]} 7. Ne1 {[%emt 0:00:10]} d6 {[%emt 0:00:07]} 8. Nc2 {[%emt 0:00:02]} Be6 {[%emt 0:00:04]} 9. Ne3 {[%emt 0:00:00]} O-O {[%emt 0:00:01]} 10. Ned5 {[%emt 0:00:01]} f5 {[%emt 0:00:08]} 11. d3 {[%emt 0:00:01]} Rb8 {[%emt 0:00:19]} 12. Rb1 {[%emt 0:00:04]} a6 {[%emt 0:00:02]} 13. a4 {[%emt 0:00:17]} Nb4 {[%emt 0:00:12]} 14. Nxb4 {[%emt 0:00:11]} cxb4 {[%emt 0:00:01]} 15. Nd5 {[%emt 0:00:01]} Nxd5 {[%emt 0:00:05]} 16. cxd5 {[%emt 0:00:16]} Bd7 {[%emt 0:00:01]} 17. Qb3 {[%emt 0:00:39]} a5 {[%emt 0:00:02]} 18. Be3 {[%emt 0:00:10]} f4 {[%emt 0:00:14]} 19. Bd2 {[%emt 0:00:05]} Qb6 {[%emt 0:00:01]} 20. Rbc1 {[%emt 0:00:07]} Rbc8 {[%emt 0:00:01]} 21. Rxc8 {[%emt 0:00:04]} Bxc8 {[%emt 0:00:11]} 22. Bf3 {[%emt 0:00:14]} g5 {[%emt 0:00:12]} 23. g4 {[%emt 0:00:06]} Bd7 {[%emt 0:00:04]} 24. Rc1 {[%emt 0:00:03]} Rc8 {[%emt 0:00:10]} 25. Rxc8+ {[%emt 0:00:04]} Bxc8 {[%emt 0:00:00]} 26. Qc4 {[%emt 0:00:02]} Bd7 {[%emt 0:00:03]} 27. b3 {[%emt 0:00:02]} Qd8 {[%emt 0:00:32]} 28. h3 {[%emt 0:00:09]} Qb8 {[%emt 0:00:02]} 29. Be4 {[%emt 0:00:10]} b5 {[%emt 0:00:04]} 30. axb5 {[%emt 0:00:02]} Bxb5 {[%emt 0:00:03]} 31. Qc2 {[%emt 0:00:01]} Bd7 {[%emt 0:00:35]} 32. Kg2 {[%emt 0:00:04]} Qc8 {[%emt 0:00:04]} 33. Qa2 {[%emt 0:00:05]} Qc7 {[%emt 0:00:03]} 34. Be1 {[%emt 0:00:10]} Be8 {[%emt 0:00:15]} 35. f3 {[%emt 0:00:03]} Qa7 {[%emt 0:00:09]} 36. Bxb4 {[%emt 0:00:05]} Qe3 {[%emt 0:00:07]} 37. Bxa5 {[%emt 0:00:02]} h5 {[%emt 0:00:01]} 38. Qd2 {[%emt 0:00:06]} Qd4 {[%emt 0:00:02]} 39. Bc3 {[%emt 0:00:02]} Qa7 {[%emt 0:00:00]} 40. b4 {[%emt 0:00:04]} hxg4 {[%emt 0:00:01]} 41. hxg4 {[%emt 0:00:02]} Bb5 {[%emt 0:00:04]} 42. Qc1 {[%emt 0:00:03]} Bf8 {[%emt 0:00:03]} 43. Qh1 {[%emt 0:00:03]} Be8 {[%emt 0:00:04]} 44. Bf5 {[%emt 0:00:10]} Bf7 {[%emt 0:00:03]} 45. Qh7# {[%emt 0:00:03]} 1-0

[Event "Austria Championship Blitz 2024"]
[Site "Innsbruck"]
[Date "2024.06.01"]
[Round "8.3"]
[White "Blohberger, Felix"]
[Black "Wohlfahrt, Herbert"]
[Result "1-0"]
[ECO "D02"]
[WhiteElo "2506"]
[BlackElo "2328"]
[Annotator "TA"]
[PlyCount "77"]
[EventDate "2024.06.01"]
[EventType "swiss"]
[EventCountry "AUT"]
[SourceTitle "playchess.com"]
[Source "ChessBase"]
[SourceQuality "1"]
[TimeControl "180+2"]

{[%evp 16,77,49,48,60,5,12,9,25,-106,-62,-185,-37,-29,-33,-43,-29,-78,-77,-169,-122,-132,-131,-196,-181,-270,-124,-208,-56,-49,-73,-189,0,-2,-3,-1,-6,0,281,281,268,264,278,270,506,372,520,504,522,497,467,347,413,410,558,586,581,539,562,584,643,626,29989,585]} 1. Nf3 {[%emt 0:00:01]} Nf6 {[%emt 0:00:01]} 2. d4 {[%emt 0:00:05]} d5 {[%emt 0:00:02]} 3. c3 {[%emt 0:00:07]} Nbd7 {[%emt 0:00:14]} 4. Bf4 {[%emt 0:00:02]} e6 {[%emt 0:00:04]} 5. e3 {[%emt 0:00:01]} Bd6 {[%emt 0:00:03]} 6. Ne5 {[%emt 0:00:06] D02: 1 d4 d5 2 Nf3 sidelines, including 2...Nf6 3 g3 and 2...Nf6 3 Bf4.} O-O {[%emt 0:00:23]} 7. Nd2 {[%emt 0:00:01]} Re8 {[%emt 0:00:31]} 8. Bd3 {[%emt 0:00:03]} Nf8 {[%emt 0:00:01]} 9. g4 {[%emt 0:00:07]} N6d7 {[%emt 0:00:19]} 10. Qf3 $146 {[%emt 0:00:28]} (10. g5 $14) ({Predecessor:} 10. g5 Qe7 11. h4 Bxe5 12. dxe5 c5 13. h5 c4 14. Bc2 Nc5 15. Nf3 b6 16. Nd4 {½-½ Gafke,M (1904)-Langmann,C (1930) EU-chT Seniors 10th 2008 (5.4)}) 10... Bxe5 $11 {[%emt 0:00:04]} 11. dxe5 {[%emt 0:00:05]} b6 {[%emt 0:00:15]} 12. Qg3 {[%emt 0:00:21]} (12. h4 $11 {remains equal.}) 12... Nc5 {[%emt 0:00:08]} 13. Be2 {[%emt 0:00:05]} ({White should play} 13. Bc2 $15) 13... Ba6 {[%emt 0:00:07]} (13... g5 $19 14. O-O-O gxf4 15. exf4 Kh8) 14. Bxa6 $15 {[%emt 0:00:08]} Nxa6 {[%emt 0:00:01]} 15. h4 {[%emt 0:00:02]} Nc5 {[%emt 0:00:01]} 16. Bg5 {[%emt 0:00:19]} (16. b3 $11) 16... Qd7 $17 {[%emt 0:00:03]} 17. h5 {[%emt 0:00:17]} (17. O-O $17) 17... Nd3+ {[%emt 0:00:29]} (17... Qb5 $19 18. b3 Qd3) 18. Kf1 {[%emt 0:00:02]} Qb5 {[%emt 0:00:02]} (18... Nxb2 19. h6 g6 20. Qf3 $18) 19. Kg2 {[%emt 0:00:10]} (19. b3 $17) 19... Qxb2 {[%emt 0:00:04]} 20. Nf3 {[%emt 0:00:04]} (20. h6 {is a better defense.} gxh6 (20... Qxd2 21. hxg7 Kxg7 22. Bf6+ Kg8 23. Qh4 $11) 21. Bf6 Qxd2 22. Rxh6) 20... h6 {[%emt 0:00:23]} (20... Qxc3 21. h6 g6 22. Bf6 $17) (20... Nd7 $19 {[%cal Od7c5] has better winning chances. ...N7c5! is the strong threat.} 21. h6 g6 (21... Qxc3 $2 22. hxg7 N3xe5 23. Rac1 $18)) 21. Bh4 {[%emt 0:00:01]} (21. Bxh6 $17 gxh6 22. g5) 21... Nh7 $2 {[%emt 0:00:09]} (21... Qxc3 22. g5 hxg5 23. Bxg5 $18) (21... Nd7 $19 {[%cal Od7c5] Hoping for ...N7c5!} 22. g5 Kh8) 22. g5 $15 {[%emt 0:00:02]} hxg5 {[%emt 0:00:01]} (22... Qxc3 23. gxh6 g6 24. hxg6 Kh8 25. gxh7) 23. Nxg5 {[%emt 0:00:02]} (23. Bxg5 $17 Kh8 (23... Qxc3 $2 24. Bh6 $18) 24. h6) 23... Nxg5 $2 {[%emt 0:00:07]} ({Better is} 23... Qxc3 $19 {And now ...Nxg5 would win.} 24. Nf3 c5) 24. Bxg5 $11 {[%emt 0:00:02]} Kh7 $1 {[%emt 0:00:10]} (24... Qxc3 25. Bf6) 25. h6 $1 {[%emt 0:00:18]} g6 {[%emt 0:00:01]} (25... Qxc3 26. hxg7+ Kg6 27. Bf6+ Kf5 28. Rh5+ Ke4 29. Qf3#) 26. Qf3 $1 {[%emt 0:00:06]} Rf8 $2 {[%emt 0:00:05][%mdl 8192]} ({Weaker is} 26... Qxc3 27. Qxf7+ Kh8 28. Qg7#) (26... Nxe5 $2 27. Qf6 Rg8 28. Qxe5 $18) (26... f5 $1 $11 {and Black stays safe.} 27. exf6 Rf8) 27. Qf6 $18 {[%emt 0:00:03]} Qxf2+ {[%emt 0:00:01]} 28. Qxf2 {[%emt 0:00:01]} Nxf2 {[%emt 0:00:01]} 29. Kxf2 {[%emt 0:00:02]} c5 $2 {[%emt 0:00:01]} (29... a6 30. c4 c6) 30. a4 {[%emt 0:00:01]} a6 {[%emt 0:00:01]} 31. Rhb1 {[%emt 0:00:04]} Rfb8 {[%emt 0:00:02]} 32. Ke2 {[%emt 0:00:02]} Rb7 {[%emt 0:00:05]} 33. Kd3 {[%emt 0:00:11]} Rc8 {[%emt 0:00:02]} 34. Rb2 {[%emt 0:00:04]} Rc6 {[%emt 0:00:01]} 35. Rab1 {[%emt 0:00:03]} Rb8 {[%emt 0:00:02]} 36. e4 {[%emt 0:00:07]} Rb7 {[%emt 0:00:06]} 37. Ke3 {[%emt 0:00:05]} Rb8 {[%emt 0:00:01]} 38. Rd1 {[%emt 0:00:04]} dxe4 {[%emt 0:00:07]} 39. Kxe4 {[%emt 0:00:28]} (39. Rd7 $142 Rf8 40. Rf2 (40. Kxe4 Kh8 $18) 40... Rcc8 41. Rfxf7+ (41. Rdxf7+ Rxf7 42. Rxf7+ Kg8 43. Rg7+ Kh8 44. Bf6 Rf8 45. Re7+ Rxf6 46. exf6 g5 47. Rg7 b5 48. f7 bxa4 49. f8=Q#) 41... Rxf7 42. Rxf7+ Kg8 43. Rg7+ Kh8 44. Bf6 (44. Kxe4 Rf8 45. Bf6 c4 46. Re7+ Rxf6 47. exf6 g5 48. Rg7 a5 49. f7 g4 50. f8=Q#)) 1-0

[Event "Austria Championship Blitz 2024"]
[Site "Innsbruck"]
[Date "2024.06.01"]
[Round "8.4"]
[White "Shengelia, David"]
[Black "Blaas, Hansjoerg"]
[Result "1-0"]
[ECO "D04"]
[WhiteElo "2465"]
[BlackElo "2222"]
[Annotator "TA"]
[PlyCount "59"]
[EventDate "2024.06.01"]
[EventType "swiss"]
[EventCountry "AUT"]
[SourceTitle "playchess.com"]
[Source "ChessBase"]
[SourceQuality "1"]
[TimeControl "180+2"]

{[%evp 9,59,33,47,0,6,0,0,0,4,0,0,0,0,0,0,0,8,0,0,0,11,0,11,0,11,4,16,10,176,177,160,164,182,191,187,174,184,193,295,200,233,214,229,226,378,252,589,425,433,427,1239,1215]} 1. d4 {[%emt 0:00:02]} d5 {[%emt 0:00:01]} 2. Nf3 {[%emt 0:00:02]} Nf6 {[%emt 0:00:01]} 3. e3 {[%emt 0:00:00]} c5 {[%emt 0:00:02]} 4. dxc5 {[%emt 0:00:10]} Nc6 {[%emt 0:00:02]} 5. a3 {[%emt 0:00:07]} a5 {[%emt 0:00:01]} 6. Bb5 {[%emt 0:00:03]} e6 {[%emt 0:00:02]} 7. c4 {[%emt 0:00:38]} Bxc5 {[%emt 0:00:05]} 8. Nc3 {[%emt 0:00:01] The position is equal.} O-O {[%emt 0:00:10]} 9. cxd5 {[%emt 0:00:05]} exd5 {[%emt 0:00:06]} 10. O-O {[%emt 0:00:05]} Bg4 {[%emt 0:00:07]} 11. h3 {[%emt 0:00:02]} Bh5 {[%emt 0:00:04]} 12. Be2 {[%emt 0:00:02]} Qd7 {[%emt 0:00:26]} 13. Bd2 {[%emt 0:00:12]} Rad8 {[%emt 0:00:05]} 14. Rc1 {[%emt 0:00:27]} Ba7 {[%emt 0:00:05]} 15. Nb5 {[%emt 0:00:02] [#] And now Nxa7 would win.} Bb8 {[%emt 0:00:06]} 16. Nfd4 {[%emt 0:00:25]} Bxe2 {[%emt 0:00:11]} 17. Qxe2 {[%emt 0:00:02]} Ne4 {[%emt 0:00:01]} 18. Rfd1 {[%emt 0:00:07]} Ne5 $2 {[%emt 0:00:14] Loses the game.} (18... f5 $11 {and Black stays safe.}) 19. Bxa5 $18 {[%emt 0:00:06][%cal Bd2a5,Ba5b4,Bb4c3][%mdl 32]} Rc8 {[%emt 0:00:10]} 20. Bb4 {[%emt 0:00:05]} Rfe8 {[%emt 0:00:12]} 21. Nc3 {[%emt 0:00:11]} Nxc3 {[%emt 0:00:27]} 22. Rxc3 {[%emt 0:00:01]} Rxc3 {[%emt 0:00:04]} 23. Bxc3 {[%emt 0:00:01]} Qd6 {[%emt 0:00:06]} (23... Rd8 {was called for.} 24. Qb5 Qxb5 25. Nxb5 Nc6) 24. Nf3 {[%emt 0:00:11]} Nxf3+ {[%emt 0:00:03]} 25. Qxf3 {[%emt 0:00:01]} Rd8 {[%emt 0:00:19]} 26. Rd4 $40 {[%emt 0:00:01][%mdl 128] Black is in trouble. Active counter play!} Qh2+ {[%emt 0:00:12]} 27. Kf1 {[%emt 0:00:00][%cal Of3g4]} Qh1+ $2 {[%emt 0:00:04]} (27... Qd6 {was worth a try.} 28. Rg4 g6) 28. Ke2 {[%emt 0:00:01][%cal Od4g4] [#] Intending Rg4! and mate. White is clearly winning.} Qb1 {[%emt 0:00:20]} 29. g3 {[%emt 0:00:02]} (29. Rxd5 Qc2+ 30. Ke1 Bc7) 29... Qa2 {[%emt 0:00:06]} (29... Rd6 $142 30. Rxd5 h5 31. Qxh5 (31. Rxh5 $2 Qd1#) (31. Qf5 Qxf5 32. Rxf5 h4 $18) 31... Qc2+ 32. Kf3 Qa4) 30. Rg4 {[%emt 0:00:04] Weighted Error Value: White=0.08 (flawless) /Black=0.40.  Loses game:     	---       	Black=1      Mistake:       	---       	Black=3      Inaccurate:     	White=2     	---        OK:         	White=7     	Black=10     Best:        	White=2     	Black=1} 1-0

[Event "Austria Championship Blitz 2024"]
[Site "Innsbruck"]
[Date "2024.06.01"]
[Round "8.5"]
[White "Lerch, Johannes"]
[Black "Kienboeck, Benjamin"]
[Result "1-0"]
[ECO "B10"]
[WhiteElo "2208"]
[BlackElo "2187"]
[Annotator "RC"]
[PlyCount "73"]
[EventDate "2024.06.01"]
[EventType "swiss"]
[EventCountry "AUT"]
[SourceTitle "playchess.com"]
[Source "ChessBase"]
[SourceQuality "1"]
[TimeControl "180+2"]

1. e4 {[%emt 0:00:01]} c6 {[%emt 0:00:06]} 2. Nf3 {[%emt 0:00:01]} d5 {[%emt 0:00:01]} 3. d3 {[%emt 0:00:00]} dxe4 4. dxe4 {[%emt 0:00:01]} Qxd1+ {[%emt 0:00:05]} 5. Kxd1 {[%emt 0:00:01]} Nf6 {[%emt 0:00:01]} 6. Nfd2 {[%emt 0:00:01]} e5 {[%emt 0:00:01]} 7. f3 {[%emt 0:00:03]} Nfd7 {[%emt 0:00:12]} 8. a4 {[%emt 0:00:03]} Be7 {[%emt 0:00:08]} 9. Bc4 {[%emt 0:00:15]} g5 {[%emt 0:00:11]} 10. h3 {[%emt 0:00:18]} h5 {[%emt 0:00:01]} 11. Ke2 {[%emt 0:00:01]} Nc5 {[%emt 0:00:14]} 12. Nb3 {[%emt 0:00:23]} Nbd7 {[%emt 0:00:08]} 13. N1d2 {[%emt 0:00:07]} Ne6 {[%emt 0:00:02]} 14. Bxe6 {[%emt 0:00:06]} fxe6 {[%emt 0:00:01]} 15. a5 {[%emt 0:00:04]} Kf7 {[%emt 0:00:06]} 16. Nc4 {[%emt 0:00:01]} Rg8 {[%emt 0:00:13]} 17. Ne3 {[%emt 0:00:04]} Nf6 {[%emt 0:00:40]} 18. g4 {[%emt 0:00:11]} Bd6 {[%emt 0:00:28]} 19. Nc4 {[%emt 0:00:05]} Bc7 {[%emt 0:00:01]} 20. Bd2 {[%emt 0:00:07]} Nd7 {[%emt 0:00:21]} 21. gxh5 {[%emt 0:00:18]} b5 {[%emt 0:00:10]} 22. axb6 {[%emt 0:00:06]} Nxb6 {[%emt 0:00:01]} 23. Nxb6 {[%emt 0:00:13]} Bxb6 {[%emt 0:00:01]} 24. Be3 {[%emt 0:00:02]} Bb7 {[%emt 0:00:18]} 25. Rhd1 {[%emt 0:00:17]} Rad8 {[%emt 0:00:08]} 26. Bxb6 {[%emt 0:00:06]} axb6 {[%emt 0:00:11]} 27. Ra7 {[%emt 0:00:04]} Rxd1 {[%emt 0:00:03]} 28. Rxb7+ {[%emt 0:00:05]} Kf6 {[%emt 0:00:00]} 29. Kxd1 {[%emt 0:00:01]} Rh8 {[%emt 0:00:00]} 30. Rxb6 {[%emt 0:00:09]} Rxh5 {[%emt 0:00:01]} 31. Rxc6 {[%emt 0:00:02]} Rxh3 {[%emt 0:00:01]} 32. Ke2 {[%emt 0:00:04]} Rh2+ {[%emt 0:00:00]} 33. Ke3 {[%emt 0:00:01]} Rh3 {[%emt 0:00:01]} 34. Kf2 {[%emt 0:00:06]} Rh2+ {[%emt 0:00:05]} 35. Kg3 {[%emt 0:00:01]} Re2 {[%emt 0:00:02]} 36. Nc5 {[%emt 0:00:04]} Rxc2 {[%emt 0:00:01]} 37. Nd7+ {[%emt 0:00:02]} 1-0

[Event "Austria Championship Blitz 2024"]
[Site "Innsbruck"]
[Date "2024.06.01"]
[Round "8.6"]
[White "Balint, Peter"]
[Black "Myagmarsuren, Mandukhai"]
[Result "1-0"]
[ECO "C88"]
[WhiteElo "2343"]
[BlackElo "2092"]
[Annotator "RC"]
[PlyCount "51"]
[EventDate "2024.06.01"]
[EventType "swiss"]
[EventCountry "AUT"]
[SourceTitle "playchess.com"]
[Source "ChessBase"]
[SourceQuality "1"]
[TimeControl "180+2"]

1. e4 {[%emt 0:00:01]} e5 {[%emt 0:00:01]} 2. Nf3 {[%emt 0:00:00]} Nc6 {[%emt 0:00:01]} 3. Bb5 {[%emt 0:00:01]} a6 {[%emt 0:03:06]} 4. Ba4 Nf6 {[%emt 0:00:00]} 5. O-O {[%emt 0:00:03]} Be7 {[%emt 0:00:04]} 6. d3 {[%emt 0:03:09]} b5 {[%emt 0:00:00]} 7. Bb3 {[%emt 0:00:00]} d6 {[%emt 0:00:00]} 8. c3 {[%emt 0:00:00]} O-O {[%emt 0:00:06]} 9. a4 Bb7 {[%emt 0:00:02]} 10. Re1 {[%emt 0:00:00]} h6 {[%emt 0:00:00]} 11. Nbd2 {[%emt 0:00:00]} Re8 {[%emt 0:00:00]} 12. Nf1 {[%emt 0:00:00]} Bf8 {[%emt 0:00:00]} 13. Ne3 {[%emt 0:00:00]} Na5 {[%emt 0:00:00]} 14. Ba2 {[%emt 0:00:00]} d5 {[%emt 0:00:00]} 15. exd5 {[%emt 0:00:00]} Nxd5 {[%emt 0:00:00]} 16. Ng4 {[%emt 0:00:00]} b4 {[%emt 0:00:00]} 17. Ngxe5 {[%emt 0:00:00]} bxc3 {[%emt 0:00:00]} 18. bxc3 {[%emt 0:00:00]} Bd6 {[%emt 0:00:00]} 19. Bd2 {[%emt 0:00:00]} Bxe5 {[%emt 0:00:00]} 20. Nxe5 {[%emt 0:00:00]} Nc6 {[%emt 0:00:00]} 21. Nxf7 {[%emt 0:00:11]} Qd7 {[%emt 0:00:00]} 22. Qf3 {[%emt 0:00:07]} Nce7 {[%emt 0:00:04]} 23. Ne5 {[%emt 0:00:01]} Qe6 {[%emt 0:00:08]} 24. Rab1 {[%emt 0:00:01]} Rf8 {[%emt 0:00:01]} 25. Qg3 {[%emt 0:00:18]} Qf5 {[%emt 0:00:02]} 26. Rxb7 {[%emt 0:00:00]} 1-0